bitfinex/quotes_ETHUSD_20230404
["timestamp","ask_amount","ask_price","bid_price","bid_amount"]
[1680582637811,2.02956813,1808.2,1807.8,8.49446792]
[1680582637985,2.47198813,1808.2,1807.8,1.56546792]
[1680582638187,2.47198813,1808.2,1807.8,0.58012078]
[1680582640249,2.02956813,1808.2,1807.8,0.58012078]
[1680582641507,1.80835813,1808.2,1807.8,0.58012078]
[1680582641707,1.80835813,1808.2,1807.8,2.55830195]
[1680582641911,1.80835813,1808.2,1807.9,0.2558302]
[1680582642114,1.11935813,1808.2,1807.9,0.2558302]
[1680582642531,1.11935813,1808.2,1807.9,0.83595098]
[1680582644655,1.11549684,1808.2,1807.9,0.83595098]
[1680582645940,1.33670684,1808.2,1807.9,0.83595098]
[1680582646144,1.11549684,1808.2,1807.9,0.83595098]
[1680582646346,1.33670684,1808.2,1807.9,0.83595098]
[1680582647415,1.33670684,1808.2,1807.9,0.2558302]
[1680582647615,1.33670684,1808.2,1807.8,0.58612078]
[1680582650570,1.33670684,1808.2,1807.9,0.58012078]
[1680582652166,1.33670684,1808.2,1807.8,1.45630195]
[1680582652364,1.11549684,1808.2,1807.9,0.58012078]
[1680582652537,1.33670684,1808.2,1807.9,0.58012078]
[1680582653348,1.11549684,1808.2,1807.9,0.58012078]
[1680582653651,1.33670684,1808.2,1807.9,0.58012078]
[1680582653854,1.11549684,1808.2,1807.9,0.58012078]
[1680582654356,1.33670684,1808.2,1807.8,1.45630195]
[1680582654553,1.33670684,1808.2,1807.9,0.58012078]
[1680582656825,1.11549684,1808.2,1807.9,0.58012078]
[1680582657226,1.33670684,1808.2,1807.9,0.58012078]
[1680582658162,0.22123,1808.0,1807.8,0.58612078]
[1680582658330,0.22123,1808.0,1807.8,0.58212078]
[1680582658526,0.22123,1808.0,1807.8,0.58012078]
[1680582659350,0.691,1807.9,1807.8,0.58012078]
[1680582659536,0.22126,1807.8,1807.7,0.58612078]
[1680582659736,0.22126,1807.8,1807.7,0.58012078]
[1680582660261,0.22126,1807.8,1807.6,1.45630195]
[1680582660468,1.33769,1807.9,1807.7,0.58012078]
[1680582660655,1.55895,1807.9,1807.7,0.58012078]
[1680582661035,1.11643,1807.9,1807.7,0.58012078]
[1680582662570,0.89517,1807.9,1807.7,0.58012078]
[1680582662887,1.48899781,1807.8,1807.6,0.58612078]
[1680582663086,0.691,1807.7,1807.6,0.58412078]
[1680582663371,0.691,1807.7,1807.6,0.58012078]
[1680582663950,0.91227,1807.7,1807.6,0.58012078]
[1680582664673,0.86202678,1807.7,1807.6,0.58012078]
[1680582664873,1.08329678,1807.7,1807.5,0.58612078]
[1680582665175,0.685,1807.6,1807.5,0.58412078]
[1680582665373,0.685,1807.6,1807.5,0.58012078]
[1680582665617,0.685,1807.6,1807.5,0.58412078]
[1680582665811,0.685,1807.6,1807.5,0.58212078]
[1680582666024,0.685,1807.6,1807.5,0.58012078]
[1680582668079,0.68262997,1807.6,1807.5,0.58012078]
[1680582668279,0.68262997,1807.6,1807.4,1.45030195]
[1680582669227,0.68262997,1807.6,1807.4,0.58012078]
[1680582671398,0.90391997,1807.6,1807.4,0.58012078]
[1680582671599,1.03856697,1807.6,1807.4,0.58012078]
[1680582672321,1.48113697,1807.6,1807.3,0.58012078]
[1680582674537,0.798507,1807.6,1807.3,0.58012078]
[1680582675333,0.691,1807.5,1807.2,0.002]
[1680582675505,0.29041,1807.4,1807.1,1.68812078]
[1680582676229,0.22131,1807.4,1807.1,1.68812078]
[1680582676547,0.22131,1807.4,1807.0,5.59368117]
[1680582676548,0.664,1807.2,1807.0,0.102]
[1680582676786,0.664,1807.2,1807.0,0.1]
[1680582677057,1.56782081,1807.2,1807.0,0.1]
[1680582677356,0.37812208,1807.1,1807.0,0.1]
[1680582677506,0.22134,1807.1,1807.0,0.1]
[1680582677706,1.35503,1807.1,1807.0,0.1]
[1680582677940,0.91234,1807.1,1807.0,0.1]
[1680582678123,0.691,1807.1,1807.0,0.1]
[1680582680817,0.91234,1807.1,1807.0,0.1]
[1680582682049,0.22134,1807.1,1807.0,0.1]
[1680582682614,0.80097908,1807.1,1807.0,0.1]
[1680582682949,4.25800126,1807.1,1807.0,0.1]
[1680582683152,1.49197908,1807.1,1807.0,0.1]
[1680582684971,4.25800126,1807.1,1807.0,0.1]
[1680582688954,4.48800126,1807.1,1807.0,0.1]
[1680582689159,9.39780126,1807.1,1807.0,0.1]
[1680582689333,9.39980126,1807.1,1807.0,0.1]
[1680582690827,9.94748959,1807.1,1807.0,0.1]
[1680582691031,9.94588996,1807.1,1807.0,0.1]
[1680582691224,9.94388996,1807.1,1807.0,0.1]
[1680582700148,9.71388996,1807.1,1807.0,0.1]
[1680582702070,10.40388996,1807.1,1807.0,0.1]
[1680582705875,9.85620163,1807.1,1807.0,0.1]
[1680582707962,16.59720163,1807.1,1807.0,0.1]
[1680582708167,19.59720163,1807.1,1807.0,0.1]
[1680582711741,18.90720163,1807.1,1807.0,0.1]
[1680582714253,0.002,1807.1,1807.0,0.1]
[1680582714481,9.6028,1807.3,1807.1,0.00216855]
[1680582714789,0.002,1807.3,1807.1,0.66618855]
[1680582714985,30.40791628,1807.8,1807.3,0.22132]
[1680582714986,9.43589051,1807.8,1807.3,0.22132]
[1680582715223,9.43589051,1807.8,1807.2,0.66876919]
[1680582715420,9.65715051,1807.8,1807.2,0.00479919]
[1680582715760,10.09188,1807.8,1807.2,0.00479919]
[1680582715964,10.09188,1807.8,1807.2,0.33914495]
[1680582716205,9.64936,1807.8,1807.2,0.56047495]
[1680582716408,9.64936,1807.8,1807.2,0.56447495]
[1680582717670,9.64936,1807.8,1807.2,0.56647495]
[1680582717885,9.64936,1807.8,1807.3,0.0566475]
[1680582718115,2.76602218,1807.7,1807.3,0.2779675]
[1680582718616,0.23,1807.6,1807.2,0.22733]
[1680582718815,2.76602218,1807.5,1807.2,0.22133]
[1680582719516,2.76297002,1807.5,1807.1,1.25230933]
[1680582719670,0.002,1807.6,1807.1,0.80961933]
[1680582719871,0.22128,1807.6,1807.1,0.58228933]
[1680582720216,0.22128,1807.6,1807.2,0.05822893]
[1680582722021,2.76602218,1807.5,1807.2,0.05822893]
[1680582722169,2.98733218,1807.5,1807.2,0.05822893]
[1680582722506,3.42993218,1807.5,1807.2,0.05822893]
[1680582722664,3.42993218,1807.5,1807.1,0.00216855]
[1680582723309,2.98733218,1807.5,1807.1,0.00216855]
[1680582727949,3.42993218,1807.5,1807.1,0.00216855]
[1680582728246,4.225,1807.4,1807.1,0.00216855]
[1680582728546,3.85248218,1807.3,1807.1,0.00216855]
[1680582728700,3.0,1807.2,1807.1,0.00216855]
[1680582728884,5.76602218,1807.2,1807.1,0.00216855]
[1680582729082,6.43202218,1807.2,1807.1,0.00216855]
[1680582730340,12.25302218,1807.2,1807.1,0.00216855]
[1680582730519,15.48168345,1807.2,1807.1,0.00216855]
[1680582733216,16.03527794,1807.2,1807.1,0.00216855]
[1680582741066,10.21427794,1807.2,1807.1,0.00216855]
[1680582741368,9.55306845,1807.2,1807.1,0.00216855]
[1680582741569,9.55027794,1807.2,1807.1,0.00216855]
[1680582741862,9.31745843,1807.2,1807.1,0.00216855]
[1680582742066,8.09245843,1807.2,1807.1,0.00216855]
[1680582742668,6.31879716,1807.2,1807.1,0.00216855]
[1680582742845,2.94918049,1807.2,1807.1,0.00216855]
[1680582743170,0.38014035,1807.3,1807.1,0.00216855]
[1680582743469,3.14416253,1807.3,1807.1,0.00216855]
[1680582744963,3.58680253,1807.3,1807.1,0.00216855]
[1680582745164,3.0,1807.2,1807.1,0.00216855]
[1680582745335,3.22133,1807.2,1807.1,0.00216855]
[1680582746719,3.0,1807.2,1807.1,0.00216855]
[1680582747568,3.22133,1807.2,1807.1,0.00216855]
[1680582749945,3.0,1807.2,1807.1,0.00216855]
[1680582750142,0.14032954,1807.3,1807.1,0.00216855]
[1680582750374,0.35965954,1807.3,1807.1,0.00216855]
[1680582750573,0.13832954,1807.3,1807.1,0.00216855]
[1680582751981,2.78450299,1807.2,1807.1,0.00216855]
[1680582753464,2.76602218,1807.2,1807.1,0.00216855]
[1680582754151,2.76602218,1807.2,1807.1,0.57668397]
[1680582755884,3.43002218,1807.2,1807.1,0.57668397]
[1680582756747,2.98735218,1807.2,1807.1,0.57668397]
[1680582761687,3.43002218,1807.2,1807.1,0.57668397]
[1680582762190,3.78705735,1807.2,1807.1,0.57668397]
[1680582762485,3.78705735,1807.2,1807.1,0.42668397]
[1680582763573,1.87423216,1807.2,1807.1,0.42668397]
[1680582763774,1.51719699,1807.2,1807.1,0.42668397]
[1680582764176,1.51719699,1807.2,1807.1,0.55090525]
[1680582764715,1.51719699,1807.2,1807.1,0.54790974]
[1680582766109,1.07452699,1807.2,1807.1,0.54790974]
[1680582766417,0.35965954,1807.3,1807.1,0.54790974]
[1680582766607,3.12568172,1807.3,1807.1,0.54790974]
[1680582773445,3.56832172,1807.3,1807.1,0.54790974]
[1680582773846,4.28392457,1807.3,1807.1,0.54790974]
[1680582774238,4.28392457,1807.3,1807.1,0.86353312]
[1680582781156,4.28392457,1807.3,1807.1,0.97349429]
[1680582784058,3.43002218,1807.2,1807.1,0.97349429]
[1680582787524,3.98338401,1807.2,1807.1,0.97349429]
[1680582787812,4.68351933,1807.2,1807.1,0.97349429]
[1680582790310,10.50451933,1807.2,1807.1,0.97349429]
[1680582790510,10.75500014,1807.2,1807.1,0.97349429]
[1680582792118,11.44600014,1807.2,1807.1,0.97349429]
[1680582793408,10.75500014,1807.2,1807.1,0.97349429]
[1680582810270,1.07550001,1807.1,1807.0,0.1]
[1680582810474,13.26955163,1807.1,1806.9,0.04271406]
[1680582810627,5.821,1806.9,1806.8,0.1]
[1680582810831,10.62513218,1806.9,1806.8,0.1]
[1680582811043,14.64560099,1806.9,1806.8,0.1]
[1680582811243,14.6640818,1806.9,1806.8,0.1]
[1680582812166,13.9790818,1806.9,1806.8,0.1]
[1680582814987,13.98687231,1806.9,1806.8,0.1]
[1680582816382,13.9790818,1806.9,1806.8,0.1]
[1680582816587,18.81617231,1806.9,1806.8,0.1]
[1680582818087,19.50117231,1806.9,1806.8,0.1]
[1680582819676,19.4933818,1806.9,1806.8,0.1]
[1680582820045,19.50117231,1806.9,1806.8,0.1]
[1680582831699,19.4826915,1806.9,1806.8,0.1]
[1680582831875,18.69222269,1806.9,1806.8,0.1]
[1680582832078,12.49092269,1806.9,1806.8,0.1]
[1680582832323,5.98939218,1806.9,1806.8,0.09759602]
[1680582832481,5.76802218,1806.9,1806.8,0.09759602]
[1680582833015,5.98939218,1806.9,1806.8,0.09759602]
[1680582834298,6.43213218,1806.9,1806.8,0.09759602]
[1680582839393,6.42981108,1806.9,1806.8,0.09759602]
[1680582850826,7.67602019,1806.9,1806.8,0.09759602]
[1680582856357,13.49702019,1806.9,1806.7,0.1]
[1680582856558,5.821,1806.5,1806.4,0.1]
[1680582856710,13.1359099,1806.5,1805.8,0.28982053]
[1680582856908,13.1359099,1806.5,1805.7,1.26085145]
[1680582856909,0.66441,1806.1,1805.7,0.38782053]
[1680582857106,0.66441,1806.1,1805.7,0.1]
[1680582857107,2.76602218,1806.0,1805.7,0.1]
[1680582857355,6.04249,1805.9,1805.7,0.1]
[1680582857659,3.43053218,1805.8,1805.7,0.1]
[1680582857856,4.6845318,1805.8,1805.7,0.1]
[1680582858154,7.6845318,1805.8,1805.7,0.1]
[1680582858312,14.8835318,1805.8,1805.7,0.1]
[1680582858512,15.1135318,1805.8,1805.7,0.1]
[1680582858746,13.7375318,1805.8,1805.7,0.1]
[1680582858916,6.44032269,1805.8,1805.7,0.1]
[1680582859110,5.99731269,1805.8,1805.7,0.1]
[1680582860858,6.44032269,1805.8,1805.7,0.1]
[1680582861350,6.44032269,1805.8,1805.3,0.291]
[1680582861514,3.22152,1805.7,1805.3,0.291]
[1680582861716,5.98754218,1805.7,1805.3,0.4891]
[1680582861927,5.99733269,1805.7,1805.3,0.4891]
[1680582862147,5.99733269,1805.7,1805.3,0.1981]
[1680582862336,5.98954218,1805.7,1805.3,0.1981]
[1680582862526,5.99733269,1805.7,1805.3,0.1981]
[1680582862940,5.99733269,1805.7,1805.2,2.217]
[1680582862941,2.76602218,1805.6,1805.2,2.217]
[1680582863144,3.44910299,1805.6,1805.2,1.0]
[1680582864472,9.27010299,1805.6,1805.2,1.0]
[1680582864652,10.14564434,1805.6,1805.2,1.0]
[1680582866485,5.821,1805.4,1805.0,1.23]
[1680582866801,2.76602218,1805.3,1804.9,15.55631]
[1680582866951,2.76602218,1805.3,1804.9,17.38194455]
[1680582867463,2.76602218,1805.3,1804.9,3.16524455]
[1680582867785,2.76602218,1805.3,1804.9,1.33761]
[1680582868084,2.76602218,1805.3,1804.9,1.33161]
[1680582868396,2.76602218,1805.3,1804.9,1.11]
[1680582868605,2.76602218,1805.3,1804.9,1.33161]
[1680582869208,2.76602218,1805.3,1804.9,1.11]
[1680582869507,2.76602218,1805.3,1804.9,1.73557555]
[1680582869651,2.76602218,1805.3,1804.9,1.51396555]
[1680582870483,2.98758218,1805.3,1804.9,1.51396555]
[1680582870981,3.00606299,1805.3,1804.9,1.51396555]
[1680582872438,3.44919299,1805.3,1804.8,2.2637855]
[1680582872581,3.00606299,1805.3,1804.8,2.2577855]
[1680582873118,8.82706299,1805.3,1804.8,0.0387855]
[1680582873284,9.48769476,1805.2,1804.8,0.0387855]
[1680582873633,4.31718218,1805.1,1804.8,0.0387855]
[1680582873835,3.00609299,1805.1,1804.8,0.0387855]
[1680582875336,5.821,1805.0,1804.8,0.0387855]
[1680582875537,5.78450299,1804.9,1804.8,0.0387855]
[1680582875822,5.78650299,1804.9,1804.8,0.0387855]
[1680582876093,0.002,1804.9,1804.8,0.0387855]
[1680582876252,0.002,1805.2,1804.8,0.0387855]
[1680582876557,0.2216,1805.1,1804.8,0.0387855]
[1680582876908,2.76602218,1805.0,1804.8,0.0387855]
[1680582878627,0.02048081,1805.1,1804.8,0.0387855]
[1680582878954,2.78450299,1805.1,1804.8,0.0387855]
[1680582879325,0.01848081,1805.1,1804.8,0.0387855]
[1680582880121,0.24007081,1805.1,1804.8,0.0387855]
[1680582880457,3.77328007,1805.1,1804.8,0.0387855]
[1680582881156,2.76602218,1805.0,1804.8,0.0387855]
[1680582881530,2.98762218,1805.0,1804.8,0.0387855]
[1680582881729,3.43083218,1805.0,1804.8,0.0387855]
[1680582882422,9.25183218,1805.0,1804.8,0.0387855]
[1680582882624,0.92518322,1804.9,1804.8,0.0387855]
[1680582882829,8.58702218,1804.9,1804.8,0.0387855]
[1680582883035,8.58902218,1804.9,1804.8,0.0387855]
[1680582883408,6.359,1804.8,1804.0,0.449035]
[1680582883669,0.66508,1804.3,1804.0,0.443035]
[1680582883971,2.98772218,1804.2,1804.0,0.343035]
[1680582884111,2.99551269,1804.2,1804.0,0.343035]
[1680582884304,11.90702218,1804.1,1804.0,0.343035]
[1680582884507,6.54753269,1804.1,1803.9,0.0072584]
[1680582884709,6.31753269,1804.1,1803.9,0.0072584]
[1680582885368,6.08602218,1804.0,1803.9,0.0072584]
[1680582885664,9.76098269,1804.0,1803.9,0.0072584]
[1680582886170,9.3360135,1804.0,1803.9,0.0072584]
[1680582887128,9.7794635,1804.0,1803.9,0.0072584]
[1680582887507,9.76098269,1804.0,1803.9,0.0072584]
[1680582887767,2.77581269,1804.0,1803.9,0.0072584]
[1680582888046,0.00779051,1804.0,1803.9,0.0072584]
[1680582888247,3.22950051,1804.2,1803.9,0.0072584]
[1680582888419,2.76602218,1804.1,1803.9,0.0072584]
[1680582888748,2.77381269,1804.1,1803.9,0.0072584]
[1680582889112,2.99552269,1804.1,1803.9,0.0072584]
[1680582889349,3.0140035,1804.1,1803.9,0.0072584]
[1680582889546,2.7922935,1804.1,1803.9,0.0072584]
[1680582890641,6.3340035,1804.1,1803.9,0.0072584]
[1680582890844,13.53403385,1804.1,1803.9,0.0072584]
[1680582891866,7.26960385,1804.1,1803.9,0.0072584]
[1680582892059,0.24998132,1804.1,1803.9,0.0072584]
[1680582892353,2.76602218,1804.0,1803.9,0.0072584]
[1680582892517,6.09381269,1804.0,1803.9,0.0072584]
[1680582892716,6.09581269,1804.0,1803.9,0.0072584]
[1680582893422,0.00979051,1804.0,1803.9,0.0072584]
[1680582893746,0.00779051,1804.1,1803.9,0.0072584]
[1680582893950,2.77381269,1804.1,1803.9,0.0072584]
[1680582894658,6.09381269,1804.1,1803.9,0.0072584]
[1680582894811,6.09581269,1804.1,1803.9,0.0072584]
[1680582896752,0.00979051,1804.1,1803.9,0.6724684]
[1680582896956,0.00779051,1804.1,1803.9,0.30623524]
[1680582897176,0.00779051,1804.2,1803.9,0.74971524]
[1680582897319,4.9232,1804.7,1804.1,1.224]
[1680582897520,2.76602218,1804.6,1804.1,1.4457]
[1680582897714,2.77381269,1804.6,1804.2,0.14457]
[1680582897914,6.09381269,1804.6,1804.2,0.36626]
[1680582898217,0.00979051,1804.6,1804.2,0.80966]
[1680582898450,0.00779051,1804.6,1804.2,0.80966]
[1680582898657,0.00779051,1804.6,1804.4,0.22168]
[1680582899034,0.00779051,1804.7,1804.4,0.22168]
[1680582899236,0.00779051,1804.7,1804.4,0.66504]
[1680582899670,0.00779051,1804.7,1804.4,0.22168]
[1680582899874,0.00779051,1804.7,1804.4,0.2962816]
[1680582900176,0.00779051,1804.7,1804.4,0.7396416]
[1680582900370,0.00779051,1804.7,1804.4,0.74444824]
[1680582900877,0.00779051,1804.7,1804.4,0.30107824]
[1680582901218,0.00779051,1804.7,1804.4,0.74443824]
[1680582901418,0.00779051,1804.8,1804.5,0.29609382]
[1680582901620,0.00779051,1804.8,1804.5,0.73942382]
[1680582901820,0.00779051,1805.0,1804.6,0.00480609]
[1680582902269,0.00779051,1805.0,1804.6,0.22645609]
[1680582902489,0.00779051,1805.0,1804.6,0.30087908]
[1680582902890,0.00779051,1805.0,1804.6,0.66976609]
[1680582905064,0.00779051,1805.0,1804.6,1.89776609]
[1680582905685,0.00779051,1805.0,1804.6,7.71876609]
[1680582905989,0.11779052,1805.2,1804.7,1.0]
[1680582906204,0.11779052,1805.2,1804.8,1.65138]
[1680582906205,0.10628852,1805.2,1804.8,1.65138]
[1680582906368,0.10628852,1805.2,1804.8,2.76138]
[1680582908373,0.10628852,1805.2,1804.8,2.76338]
[1680582908885,0.10628852,1805.2,1804.8,0.76487]
[1680582909206,0.10628852,1805.2,1804.8,0.22162]
[1680582910857,0.10628852,1805.2,1804.8,0.66488]
[1680582915887,0.10628852,1805.2,1804.8,1.77488]
[1680582916086,0.10628852,1805.2,1804.8,1.78088]
[1680582918975,0.10628852,1805.2,1804.8,1.77688]
[1680582919186,0.10628852,1805.2,1804.9,0.177688]
[1680582919495,0.10628852,1805.2,1805.0,0.2216]
[1680582921250,0.10628852,1805.2,1805.0,0.66481]
[1680582927353,0.10628852,1805.2,1805.0,0.2216]
[1680582927931,0.10628852,1805.2,1805.0,0.66481]
[1680582929722,0.10628852,1805.2,1805.0,0.74994033]
[1680582930930,0.10326653,1805.2,1805.0,0.74994033]
[1680582932103,0.35133906,1805.1,1805.0,0.74994033]
[1680582933157,0.10326653,1805.2,1805.0,7.79094033]
[1680582933330,0.10326653,1805.2,1805.0,7.79294033]
[1680582933658,0.10326653,1805.2,1805.1,2.33043403]
[1680582935606,0.10326653,1805.2,1805.1,12.14545621]
[1680582935811,0.10326653,1805.2,1805.1,13.25545621]
[1680582936006,0.10326653,1805.2,1805.1,13.25163304]
[1680582936433,0.10326653,1805.2,1805.1,17.87903304]
[1680582936826,0.10326653,1805.2,1805.1,12.05803304]
[1680582937907,0.10326653,1805.2,1805.1,17.87903304]
[1680582940063,0.10326653,1805.2,1805.1,15.11301086]
[1680582942188,0.10326653,1805.2,1805.1,13.88501086]
[1680582942389,0.10326653,1805.2,1805.1,8.06401086]
[1680582943197,0.10326653,1805.2,1805.1,2.32861086]
[1680582943327,0.10326653,1805.2,1805.1,1.55114]
[1680582953351,0.10326653,1805.2,1805.1,2.41694856]
[1680582956683,0.10043501,1805.2,1805.1,2.41694856]
[1680582959384,0.10043501,1805.2,1805.1,3.57780001]
[1680582960149,0.10043501,1805.2,1805.1,2.41694856]
[1680582960374,0.10043501,1805.2,1805.1,3.38645549]
[1680582960683,0.10043501,1805.2,1805.1,4.54730694]
[1680582961193,0.10043501,1805.2,1805.1,3.38645549]
[1680582961682,0.10043501,1805.2,1805.1,4.54730694]
[1680582962388,0.10043501,1805.2,1805.1,4.55233866]
[1680582962587,0.10043501,1805.2,1805.1,3.39148721]
[1680582962794,0.10043501,1805.2,1805.1,4.55233866]
[1680582963878,0.10043501,1805.2,1805.1,2.25328173]
[1680582964082,0.10043501,1805.2,1805.1,1.09243028]
[1680582964287,0.45263228,1805.2,1805.1,1.09243028]
[1680582964760,0.45263228,1805.2,1805.1,0.87084028]
[1680582965197,0.45263228,1805.2,1805.1,1.09243028]
[1680582966858,0.45263228,1805.2,1805.1,0.87084028]
[1680582967058,0.45263228,1805.2,1805.1,1.09243028]
[1680582967958,0.45263228,1805.2,1805.1,1.53561028]
[1680582969457,0.45263228,1805.2,1805.1,3.58283173]
[1680582969673,0.45263228,1805.2,1805.1,4.08680395]
[1680582970355,0.45263228,1805.2,1805.1,3.58283173]
[1680582970696,0.45263228,1805.2,1805.1,2.42198028]
[1680582970888,0.45263228,1805.2,1805.1,3.58283173]
[1680582971283,0.10043501,1805.2,1805.1,2.69646173]
[1680582971963,0.10043501,1805.2,1805.1,1.82562145]
[1680582972163,0.46760065,1805.2,1805.1,2.15387264]
[1680582972476,0.46760065,1805.2,1805.1,1.53594246]
[1680582973185,0.46760065,1805.2,1805.1,2.69679391]
[1680582973582,0.46760065,1805.2,1805.1,1.82562145]
[1680582975886,0.46760065,1805.2,1805.1,3.27570686]
[1680582976170,0.10043501,1805.2,1805.1,3.27570686]
[1680582976386,0.10043501,1805.2,1805.1,4.27421655]
[1680582976902,0.10043501,1805.2,1805.1,8.0364651]
[1680582977073,0.46760065,1805.2,1805.1,8.0384651]
[1680582980276,0.46491281,1805.2,1805.1,8.0384651]
[1680582981472,0.46491281,1805.2,1805.1,7.75037991]
[1680582983175,0.46491281,1805.2,1805.1,9.20046532]
[1680582983375,0.46491281,1805.2,1805.1,7.75037991]
[1680582984170,0.46491281,1805.2,1805.1,8.0384651]
[1680582989075,0.46491281,1805.2,1805.1,13.8594651]
[1680582989323,0.46491281,1805.2,1805.1,18.02386079]
[1680582990085,0.09774717,1805.2,1805.1,18.02386079]
[1680582993119,0.09774717,1805.2,1805.1,16.28340187]
[1680582998423,0.09774717,1805.2,1805.1,9.14773119]
[1680582999221,0.09774717,1805.2,1805.1,9.14766289]
[1680583003917,0.09522469,1805.2,1805.1,9.14766289]
[1680583004830,0.09522469,1805.2,1805.1,9.14747636]
[1680583019720,0.09522469,1805.2,1805.1,7.04096667]
[1680583019913,0.09522469,1805.2,1805.1,8.14896667]
[1680583024759,0.09522469,1805.2,1805.1,3.22586667]
[1680583024962,0.09522469,1805.2,1805.1,3.22386667]
[1680583025258,0.0931479,1805.2,1805.1,3.22386667]
[1680583026320,0.0931479,1805.2,1805.1,2.11586667]
[1680583026769,0.0931479,1805.2,1805.1,3.22386667]
[1680583027122,0.0931479,1805.2,1805.1,2.11586667]
[1680583027328,0.0931479,1805.2,1805.1,1.45109667]
[1680583027527,0.0931479,1805.2,1805.1,1.38332752]
[1680583027767,0.0931479,1805.2,1805.1,2.83442419]
[1680583028333,0.0931479,1805.2,1805.1,1.38332752]
[1680583029139,0.46595247,1805.2,1805.1,2.83442419]
[1680583031368,0.46595247,1805.2,1805.1,1.38332752]
[1680583034672,0.46595247,1805.2,1805.1,1.16173752]
[1680583034859,0.46595247,1805.2,1805.1,1.38332752]
[1680583035640,0.46595247,1805.2,1805.1,1.82650752]
[1680583036342,0.46595247,1805.2,1805.1,2.35390894]
[1680583038056,0.46595247,1805.2,1805.1,8.17490894]
[1680583038251,0.46595247,1805.2,1805.1,8.46626809]
[1680583038450,0.46595247,1805.2,1805.1,8.12317142]
[1680583039252,0.0931479,1805.2,1805.1,8.12317142]
[1680583039558,0.0931479,1805.2,1805.1,10.8891936]
[1680583039738,0.0931479,1805.2,1805.1,12.62965252]
[1680583039943,0.0931479,1805.2,1805.1,12.63445729]
[1680583040249,0.0931479,1805.2,1805.1,10.89399837]
[1680583046052,0.0931479,1805.2,1805.1,8.12797619]
[1680583046465,0.0931479,1805.2,1805.1,2.30697619]
[1680583046782,0.0931479,1805.2,1805.1,3.75686156]
[1680583046983,0.0931479,1805.2,1805.1,3.22465537]
[1680583047285,0.80162871,1805.2,1805.1,0.87121609]
[1680583047757,0.80162871,1805.2,1805.1,1.09280609]
[1680583048187,1.18729357,1805.2,1805.1,0.87121609]
[1680583048385,1.18729357,1805.2,1805.1,1.09280609]
[1680583049056,1.18729357,1805.2,1805.1,0.87121609]
[1680583049260,1.30602293,1805.2,1805.1,0.87121609]
[1680583049874,1.30394691,1805.2,1805.0,0.87121609]
[1680583050290,1.30394691,1805.2,1805.1,0.22159]
[1680583050445,1.30394691,1805.2,1805.0,1.53600609]
[1680583050656,1.30394691,1805.2,1805.0,1.09280609]
[1680583050980,1.30394691,1805.2,1805.0,0.87121609]
[1680583053010,0.13039469,1805.1,1805.0,0.87121609]
[1680583053384,0.13039469,1805.1,1805.0,1.09281609]
[1680583053568,1.18521755,1805.2,1805.0,1.09281609]
[1680583056812,1.18521755,1805.2,1805.0,1.53602609]
[1680583057468,1.18521755,1805.2,1805.0,1.09281609]
[1680583058392,1.18521755,1805.2,1805.0,0.87121609]
[1680583059816,0.691,1805.1,1804.9,2.03279289]
[1680583060022,1.384,1805.0,1804.8,0.87921609]
[1680583060186,0.691,1804.9,1804.8,0.87121609]
[1680583061276,0.691,1804.9,1804.7,2.26042289]
[1680583061476,0.691,1804.9,1804.7,2.25842289]
[1680583061874,0.691,1804.9,1804.7,2.25642289]
[1680583062107,0.691,1804.9,1804.7,1.09484609]
[1680583062286,0.691,1804.9,1804.7,1.09284609]
[1680583063601,0.38950194,1805.1,1804.7,3.73877129]
[1680583063784,0.38950194,1805.1,1804.8,0.87121609]
[1680583064585,0.38950194,1805.1,1804.8,1.09284609]
[1680583064986,0.38950194,1805.1,1804.8,1.53610609]
[1680583065410,0.38950194,1805.1,1804.8,1.09284609]
[1680583066405,0.38950194,1805.1,1804.8,0.87121609]
[1680583067422,0.38950194,1805.1,1804.7,2.25442289]
[1680583067604,0.38950194,1805.1,1804.7,2.91892461]
[1680583068020,0.38950194,1805.1,1804.8,0.87121609]
[1680583068229,0.38950194,1805.1,1804.7,1.76334781]
[1680583068423,0.38950194,1805.1,1804.7,2.91892461]
[1680583068723,0.687,1805.0,1804.7,0.87121609]
[1680583069088,0.36786192,1804.9,1804.7,0.87121609]
[1680583069286,0.36786192,1804.9,1804.7,1.09285609]
[1680583073325,0.01848081,1805.1,1804.7,1.09285609]
[1680583073485,0.98593408,1805.1,1804.7,1.09285609]
[1680583074602,0.98593408,1805.1,1804.7,0.22164]
[1680583076588,0.98593408,1805.1,1804.6,0.008]
[1680583076589,1.229,1804.9,1804.6,0.008]
[1680583076791,1.229,1804.9,1804.5,0.87121609]
[1680583076792,1.45062,1804.9,1804.5,0.87721609]
[1680583076993,1.57352,1804.9,1804.5,0.006]
[1680583077532,2.01675,1804.9,1804.4,0.87121609]
[1680583078035,6.72715,1804.9,1804.4,0.87121609]
[1680583078230,6.72915,1804.9,1804.4,0.87121609]
[1680583078430,6.72915,1804.9,1804.3,7.88527289]
[1680583078729,6.28592,1804.9,1804.3,7.88527289]
[1680583078927,6.28592,1804.9,1804.4,1.09289609]
[1680583079114,6.28592,1804.9,1804.4,1.09489609]
[1680583079526,6.28592,1804.9,1804.4,0.002]
[1680583079708,6.28592,1804.9,1804.3,7.88527289]
[1680583079893,6.28592,1804.9,1804.4,0.78852729]
[1680583080096,0.41803153,1804.8,1804.4,1.01019729]
[1680583080295,0.41803153,1804.8,1804.4,1.01419729]
[1680583081196,6.30440081,1804.9,1804.4,0.79252729]
[1680583081398,6.30440081,1804.9,1804.4,0.78852729]
[1680583081614,6.30440081,1804.9,1804.4,1.01219729]
[1680583081932,6.30440081,1804.9,1804.4,1.01419729]
[1680583082139,6.08278081,1804.9,1804.4,1.01019729]
[1680583082434,6.30439081,1804.9,1804.4,1.01019729]
[1680583082593,6.30439081,1804.9,1804.4,0.78852729]
[1680583083194,6.08278081,1804.9,1804.4,1.01020729]
[1680583083934,6.30440081,1804.9,1804.4,1.01020729]
[1680583084100,6.30440081,1804.9,1804.4,0.22168]
[1680583084300,6.30440081,1804.9,1804.3,6.72850299]
[1680583086370,1.228,1804.7,1804.3,6.50682299]
[1680583086645,1.228,1804.7,1804.3,6.72850299]
[1680583089415,1.228,1804.7,1804.3,5.61850299]
[1680583090165,1.228,1804.7,1804.3,6.78007979]
[1680583090337,1.228,1804.7,1804.3,8.66741545]
[1680583091334,1.228,1804.7,1804.3,6.78007979]
[1680583091536,1.228,1804.7,1804.3,6.55839979]
[1680583091739,1.228,1804.7,1804.3,5.39682299]
[1680583092065,1.228,1804.7,1804.3,6.55839979]